bitfinex-derivatives/quotes_SOLF0:USTF0_20240912
["timestamp","ask_amount","ask_price","bid_price","bid_amount"]
[1726152410567,3.3347,134.95,134.88,3.3363]
[1726152410708,28.37,134.98,134.86,5.06015816]
[1726152411325,28.37,134.98,134.86,1.4118]
[1726152411700,3.3347,134.95,134.88,3.3362]
[1726152412101,28.37,134.96,134.88,3.3362]
[1726152412300,3.3347,134.95,134.88,3.3362]
[1726152412505,28.37,134.96,134.89,3.336]
[1726152412710,28.37,134.96,134.86,1.4118]
[1726152413023,28.37,134.96,134.86,5.10666248]
[1726152413213,28.37,134.98,134.86,5.10666248]
[1726152413423,28.37,134.98,134.87,28.37]
[1726152414930,28.37,134.98,134.86,5.10666248]
[1726152415606,28.37,134.98,134.86,3.69486248]
[1726152416228,3.3347,134.95,134.89,3.336]
[1726152416557,28.37,134.98,134.86,3.69486248]
[1726152416705,28.37,134.98,134.88,3.3362]
[1726152417011,28.37,134.94,134.83,29.7013]
[1726152417200,4.6241,134.93,134.87,3.3365]
[1726152417409,1.2888,134.93,134.83,29.7013]
[1726152417742,28.37,134.92,134.82,1.4156]
[1726152417988,28.37,134.89,134.74,158.24084648]
[1726152418335,3.3377,134.83,134.75,2.70377262]
[1726152418589,28.37,134.84,134.69,1.3125]
[1726152418726,28.37,134.84,134.72,28.37]
[1726152419021,3.3383,134.81,134.73,1.334]
[1726152419127,28.37,134.84,134.73,1.334]
[1726152419319,4.1037,134.85,134.73,1.334]
[1726152419532,3.3382,134.81,134.73,1.334]
[1726152420024,3.3382,134.81,134.73,4.6741]
[1726152420223,28.37,134.81,134.69,2.6534]
[1726152420419,4.1037,134.85,134.73,28.37]
[1726152421065,3.3374,134.84,134.76,3.3394]
[1726152421257,4.1037,134.85,134.77,3.6829413]
[1726152421493,28.37,134.88,134.77,28.37]
[1726152421612,28.37,134.88,134.78,4.0453]
[1726152421919,28.37,134.86,134.75,28.37]
[1726152422134,3.3377,134.83,134.74,3.3396]
[1726152422309,4.1982,134.85,134.73,29.7806]
[1726152422707,3.3376,134.84,134.75,3.3395]
[1726152422915,28.37,134.84,134.73,29.7806]
[1726152423419,28.37,134.79,134.7,1.3066]
[1726152423613,2.8023,134.78,134.69,1.3281]
[1726152423803,4.1731,134.78,134.7,3.3407]
[1726152424112,4.1731,134.78,134.69,1.3281]
[1726152424205,4.1731,134.78,134.66,28.37]
[1726152424548,28.37,134.77,134.66,29.6557]
[1726152424728,28.37,134.75,134.65,2.7172]
[1726152425018,28.37,134.77,134.63,32.09718504]
[1726152425215,4.1731,134.78,134.64,2.6418]
[1726152425407,2.8023,134.78,134.68,28.37]
[1726152425612,2.8023,134.78,134.69,1.2857]
[1726152426135,46.36,134.77,134.69,1.2857]
[1726152426320,46.36,134.77,134.66,46.36]
[1726152426570,1.3693,134.76,134.64,6.36750114]
[1726152426721,2.8023,134.78,134.66,46.36]
[1726152426998,2.8023,134.78,134.67,1.3493]
[1726152427135,4.1716,134.78,134.67,1.3493]
[1726152427502,46.36,134.76,134.67,1.3493]
[1726152428414,50.5316,134.78,134.67,1.3493]
[1726152428656,54.2941269,134.78,134.67,1.3493]
[1726152428864,50.5316,134.78,134.67,1.3493]
[1726152429620,3.3392,134.77,134.7,3.3407]
[1726152430122,50.5316,134.78,134.71,3.3406]
[1726152430517,50.5316,134.78,134.67,1.3493]
[1726152430518,4.1716,134.78,134.67,47.7093]
[1726152430661,49.6979,134.82,134.7,46.36]
[1726152430842,46.36,134.82,134.71,2.8229]
[1726152431086,46.36,134.78,134.71,2.8229]
[1726152431259,46.36,134.78,134.67,1.3493]
[1726152431260,3.3393,134.77,134.7,3.3408]
[1726152431424,1.4054,134.77,134.7,3.3408]
[1726152431712,1.4054,134.77,134.67,1.3493]
[1726152431713,4.114,134.77,134.67,1.3493]
[1726152432026,46.36,134.76,134.67,1.3493]
[1726152432113,4.114,134.77,134.67,1.3493]
[1726152432327,4.114,134.77,134.72,3.3402]
[1726152432527,46.36,134.81,134.69,46.36]
[1726152432734,3.3388,134.79,134.72,3.3403]
[1726152432953,3.3388,134.79,134.69,46.36]
[1726152432954,46.36,134.79,134.69,46.36]
[1726152433414,3.3393,134.77,134.7,3.3408]
[1726152433734,46.36,134.79,134.67,47.7093]
[1726152434517,3.339,134.78,134.72,3.3401]
[1726152434717,46.36,134.79,134.67,47.7093]
[1726152434934,3.3395,134.76,134.7,3.3406]
[1726152435225,46.36,134.79,134.67,47.7093]
[1726152435522,3.3389,134.79,134.69,46.36]
[1726152435733,1.4054,134.8,134.7,46.36]
[1726152435948,46.36,134.83,134.71,51.32223919]
[1726152436216,46.36,134.81,134.72,1.3053]
[1726152436629,46.36,134.81,134.72,4.6455]
[1726152436948,46.36,134.83,134.72,1.3053]
[1726152437125,3.3384,134.8,134.74,3.3399]
[1726152437427,46.36,134.81,134.72,1.3053]
[1726152438018,4.0845,134.84,134.72,1.3053]
[1726152438019,46.36,134.83,134.72,1.3053]
[1726152438320,3.3386,134.8,134.74,3.3397]
[1726152438523,46.36,134.83,134.72,1.3053]
[1726152439718,3.3384,134.8,134.75,3.3396]
[1726152439926,46.36,134.83,134.73,46.36]
[1726152440346,46.36,134.83,134.74,1.3679]
[1726152440535,49.6979,134.83,134.77,3.339]
[1726152440829,49.6979,134.83,134.74,1.3679]
[1726152440830,1.4178,134.84,134.76,46.36]
[1726152441123,46.36,134.86,134.76,46.36]
[1726152441555,3.3372,134.85,134.79,3.3386]
[1726152441920,3.3372,134.85,134.76,46.36]
[1726152442134,3.3371,134.86,134.76,46.36]
[1726152442331,2.7972,134.91,134.8,46.36]
[1726152442332,46.36,134.9,134.8,46.36]
[1726152442574,2.7972,134.91,134.8,46.36]
[1726152442575,2.7972,134.91,134.81,4.1328]
[1726152442759,1.3802,134.91,134.82,46.36]
[1726152443039,1.3802,134.91,134.81,4.1328]
[1726152444514,1.4009,134.92,134.82,46.36]
[1726152444952,47.7609,134.92,134.81,4.1328]
[1726152445427,3.336,134.9,134.84,3.3372]
[1726152445634,47.7609,134.92,134.81,4.1328]
[1726152445840,1.4009,134.92,134.82,46.36]
[1726152446069,3.3351,134.94,134.88,3.3364]
[1726152446525,2.8179,134.97,134.86,28.48]
[1726152446526,3.3348,134.95,134.86,28.48]
[1726152446737,2.8179,134.97,134.86,28.48]
[1726152446927,2.8179,134.97,134.87,3.72404486]
[1726152447121,6.1522,134.97,134.91,3.3356]
[1726152447314,29.7763,135.0,134.88,32.6351]
[1726152447557,1.2963,135.0,134.91,28.48]
[1726152447925,29.7763,135.0,134.88,32.6351]
[1726152448144,28.48,134.97,134.88,4.1551]
[1726152448318,2.6894,134.96,134.88,4.1551]
[1726152448642,29.7763,135.0,134.88,32.6351]
[1726152449047,3.3351,134.94,134.88,4.1551]
[1726152449265,3.3351,134.94,134.79,38.86899968]
[1726152449266,28.48,134.93,134.82,28.48]
[1726152449493,1.3515,134.92,134.82,28.48]
[1726152449658,28.48,134.91,134.81,3.9512]
[1726152449839,1.3515,134.92,134.81,32.4312]
[1726152450240,4.6871,134.92,134.81,32.4312]
[1726152450444,1.3515,134.92,134.84,28.48]
[1726152450644,2.7535,134.93,134.84,28.48]
[1726152450645,3.3352,134.93,134.84,28.48]
[1726152451112,28.48,134.95,134.84,28.48]
[1726152451475,1.3515,134.96,134.86,28.48]
[1726152451588,1.3515,134.96,134.87,3.76992068]
[1726152451736,2.7185,134.99,134.88,28.48]
[1726152451943,3.3341,134.98,134.89,4.0075]
[1726152452124,1.3029,134.99,134.89,4.0075]
[1726152452367,3.335,134.94,134.87,3.3366]
[1726152452539,28.48,134.97,134.86,32.15393076]
[1726152452764,28.48,134.97,134.87,1.3037]
[1726152453046,29.7829,134.99,134.88,28.48]
[1726152453336,28.48,134.99,134.88,31.1838]
[1726152453931,3.3343,134.97,134.88,31.1838]
[1726152454147,28.48,134.99,134.88,31.1838]
[1726152454360,29.7829,135.02,134.9,28.48]
[1726152454601,3.3336,135.0,134.93,3.335]
[1726152454840,29.7829,135.02,134.9,28.48]
[1726152455244,3.3338,134.99,134.9,28.48]
[1726152455434,29.7829,135.02,134.9,28.48]
[1726152456039,29.7829,135.02,134.92,28.48]
[1726152456934,1.3029,135.02,134.92,28.48]
[1726152457133,3.3332,135.01,134.92,28.48]
[1726152457346,28.48,135.04,134.93,3.69942196]
[1726152457557,32.3933,135.08,134.97,28.48]
[1726152458252,32.3933,135.08,134.98,2.7239]
[1726152458465,3.3322,135.06,134.99,3.3336]
[1726152458641,32.3933,135.08,134.98,2.7239]
[1726152458837,3.3325,135.05,134.98,6.0577]
[1726152459027,3.3325,135.05,134.98,2.7239]
[1726152459355,32.3933,135.08,134.98,2.7239]
[1726152459547,3.3324,135.05,134.98,2.7239]
[1726152459938,3.332,135.06,135.0,3.3333]
[1726152460131,32.3933,135.08,134.98,2.7239]
[1726152461241,3.3318,135.07,135.01,3.3332]
[1726152461449,31.1026,135.08,134.99,28.48]
[1726152461660,3.3324,135.05,134.99,3.3336]
[1726152461848,28.48,135.06,134.98,2.7239]
[1726152462240,3.3325,135.04,134.98,6.0576]
[1726152462472,28.48,135.06,134.98,6.0576]
[1726152463359,28.48,135.06,134.98,2.7239]
[1726152463549,28.48,135.06,134.94,2.6508]
[1726152463746,28.48,135.06,134.95,29.7842]
[1726152464041,28.48,135.06,134.95,1.3042]
[1726152464234,28.48,135.06,134.97,28.48]
[1726152464563,28.48,135.06,134.98,3.3339]
[1726152464842,2.6226,135.08,134.97,28.48]
[1726152465041,3.3324,135.05,134.99,3.3336]
[1726152465239,2.6226,135.08,134.99,28.48]
[1726152465637,3.332,135.06,135.0,3.3332]
[1726152465831,2.6226,135.08,134.99,28.48]
[1726152466252,2.6226,135.08,134.97,28.48]
[1726152466675,3.3329,135.03,134.98,3.3339]
[1726152466946,28.48,135.06,134.97,28.48]
[1726152467134,28.48,135.06,134.98,3.3338]
[1726152467640,28.48,135.06,134.97,28.48]
[1726152468039,2.6226,135.08,134.97,28.48]
[1726152468244,2.6226,135.08,134.99,3.3335]
[1726152468839,3.3325,135.04,134.99,3.3335]
[1726152469758,3.3323,135.05,135.0,3.3334]
[1726152470189,2.6226,135.08,134.97,28.48]
[1726152470439,3.3326,135.04,134.99,3.3335]
[1726152470944,3.3328,135.03,134.97,28.48]
[1726152471164,28.48,135.06,134.97,28.48]
[1726152471450,3.3324,135.05,134.99,3.3335]
[1726152471652,31.1026,135.08,134.99,3.3335]
[1726152472032,31.1026,135.08,134.97,28.48]
[1726152472237,28.48,135.06,134.97,28.48]
[1726152472646,3.3328,135.03,134.97,31.8139]
[1726152472952,3.3328,135.03,134.97,28.48]
[1726152473544,3.3325,135.04,134.98,3.3338]
[1726152473755,28.48,135.06,134.96,1.3047]
[1726152474155,28.48,135.04,134.96,1.3047]
[1726152474652,3.3334,135.01,134.96,1.3047]
[1726152474845,3.3334,135.01,134.96,4.6391]
[1726152475146,3.3334,135.01,134.96,1.3047]
[1726152476248,28.48,135.04,134.94,1.3461]
[1726152476459,28.48,135.02,134.94,1.3461]
[1726152476662,3.3339,134.99,134.94,1.3461]
[1726152477951,3.3339,134.99,134.94,4.6809]
[1726152478548,3.3335,135.0,134.94,4.6809]
[1726152478756,28.48,135.02,134.94,1.3461]
[1726152478941,3.3339,134.99,134.94,1.3461]
[1726152479141,28.48,135.02,134.94,1.3461]
[1726152479656,1.2953,135.01,134.94,1.3461]
[1726152479852,1.2953,135.01,134.94,4.6809]
[1726152480253,3.3337,134.99,134.94,4.6809]
[1726152480752,3.3341,134.98,134.94,1.3461]
[1726152480955,1.2953,135.01,134.94,1.3461]
[1726152481848,32.18388198,135.05,134.94,1.3461]
[1726152482097,32.18388198,135.05,134.95,1.3857]
[1726152482241,17.78,135.05,134.95,20.466]
[1726152482449,3.3329,135.03,134.97,3.334]
[1726152482659,17.78,135.05,134.97,3.334]
[1726152483247,19.0646,135.06,134.99,3.3336]
[1726152483465,19.0646,135.06,134.97,17.78]
[1726152483756,3.3328,135.03,134.98,3.3338]
[1726152484048,3.3328,135.03,134.97,17.78]
[1726152484257,3.3328,135.03,134.95,2.686]
[1726152484258,1.2846,135.06,134.96,28.45]
[1726152484557,3.3326,135.04,134.99,3.3335]
[1726152484951,3.3323,135.05,134.99,3.3335]
[1726152485465,1.2846,135.06,134.96,28.45]
[1726152485466,1.2846,135.06,134.98,3.3338]
[1726152486065,3.3326,135.04,134.98,3.3338]
[1726152486279,1.2846,135.06,134.98,3.3338]
[1726152486574,1.2846,135.06,134.96,28.45]
[1726152486768,28.45,135.05,134.95,2.686]
[1726152487803,28.45,135.0,134.89,1.3017]
[1726152488008,28.45,135.0,134.89,34.5036]
[1726152488276,3.3343,134.97,134.89,31.1676]
[1726152488476,3.9706,134.99,134.89,34.5037]
[1726152488671,3.9706,134.99,134.89,31.1676]
[1726152488878,32.21500222,134.98,134.87,29.7427]
[1726152489059,28.45,134.96,134.87,29.7427]
[1726152489279,3.3345,134.96,134.87,29.7427]
[1726152489474,28.45,134.98,134.89,28.45]
[1726152489771,28.45,134.98,134.89,31.786]
[1726152490067,28.45,134.98,134.89,28.45]
[1726152490386,3.3349,134.95,134.89,28.45]
[1726152491069,3.335,134.94,134.89,31.786]
[1726152491374,28.45,134.98,134.89,28.45]
[1726152491565,28.45,134.98,134.9,3.3358]
[1726152491759,28.45,134.98,134.89,28.45]
[1726152491971,28.45,134.98,134.88,2.7205]
[1726152491972,3.9706,134.99,134.92,3.3353]
[1726152492167,2.6809,134.99,134.93,3.77992735]
[1726152492361,4.68,134.99,134.91,28.45]
[1726152492564,1.3462,134.99,134.91,28.45]
[1726152493292,1.3462,134.99,134.88,2.7205]
[1726152493293,1.3462,134.99,134.89,28.45]
[1726152493574,3.3347,134.96,134.89,28.45]
[1726152493870,3.3343,134.97,134.89,28.45]
[1726152494176,1.3462,134.99,134.89,28.45]
[1726152494376,29.7962,134.99,134.89,28.45]
[1726152494779,1.3462,134.99,134.89,28.45]
[1726152495172,3.3348,134.95,134.89,28.45]
[1726152495369,1.3462,134.99,134.9,3.3359]
[1726152495569,1.3462,134.99,134.89,28.45]
[1726152495772,3.3348,134.95,134.89,28.45]
[1726152495973,1.3462,134.99,134.9,3.3358]
[1726152496181,1.3462,134.99,134.91,28.45]
[1726152496568,1.3462,134.99,134.93,3.3352]
[1726152496770,28.45,135.03,134.93,3.73416126]
[1726152496992,1.3404,135.02,134.91,28.45]
[1726152497683,1.3404,135.02,134.94,28.45]
[1726152497862,3.3332,135.01,134.95,3.76492103]
[1726152498062,3.3332,135.01,134.95,6.55462103]
[1726152498394,3.3332,135.01,134.95,7.88352103]
[1726152498681,28.45,135.03,134.95,4.1186]
[1726152499198,3.3336,135.0,134.95,4.1186]
[1726152500178,28.45,135.03,134.95,4.1186]
[1726152500376,28.45,135.03,134.92,28.45]
[1726152500677,28.45,135.01,134.9,28.45]
[1726152500872,1.3556,135.0,134.9,28.45]
[1726152501208,1.3556,135.0,134.88,31.1726]
[1726152501209,28.45,134.99,134.88,31.1726]
[1726152501384,28.45,134.97,134.88,2.7226]
[1726152501590,3.3356,134.92,134.88,2.7226]
[1726152501766,6.5338996,134.98,134.83,28.45]
[1726152501767,28.45,134.94,134.83,28.45]
[1726152502079,28.45,134.92,134.81,4.0637]
[1726152502277,1.4167,134.91,134.81,4.0637]
[1726152503164,3.3366,134.88,134.81,7.4017]
[1726152504088,3.3368,134.87,134.81,7.4017]
[1726152504377,28.45,134.9,134.81,4.0637]
[1726152505281,3.3369,134.87,134.81,7.4018]
[1726152505865,28.45,134.9,134.81,4.0637]
[1726152506079,28.45,134.88,134.81,1.3411]
[1726152506975,3.3369,134.86,134.81,1.3411]
[1726152508289,1.4167,134.91,134.81,29.7911]
[1726152508479,1.4167,134.91,134.83,28.45]
[1726152508831,4.7379,134.92,134.83,28.45]
[1726152508988,1.4023,134.92,134.83,28.45]
[1726152509866,3.3359,134.91,134.85,3.337]
[1726152510082,1.3556,134.93,134.83,28.45]
[1726152510295,2.7408,134.97,134.88,28.45]
[1726152510612,1.3953,134.98,134.89,28.45]
[1726152510878,1.3953,134.98,134.9,1.4178]
[1726152511102,28.45,134.96,134.85,28.45]
[1726152511302,28.45,134.96,134.86,3.76288829]
[1726152511475,28.45,134.96,134.85,3.337]
[1726152511675,32.20324842,134.96,134.85,3.337]
[1726152511872,28.45,134.96,134.83,28.45]
[1726152512292,28.45,134.96,134.86,3.3369]
[1726152512698,3.3356,134.92,134.86,3.3369]
[1726152512886,28.45,134.96,134.87,3.3366]
[1726152513384,28.45,134.94,134.85,3.3371]
[1726152513586,28.45,134.94,134.82,4.1594]
[1726152513793,28.45,134.94,134.82,10.08268008]
[1726152513987,3.3359,134.9,134.82,4.1594]
[1726152514290,28.45,134.92,134.82,4.1594]
[1726152514485,3.336,134.9,134.82,4.1594]
[1726152514871,28.45,134.92,134.82,4.1594]
[1726152515090,28.45,134.95,134.82,10.08352932]
[1726152516180,28.45,134.93,134.82,10.08352932]
[1726152516785,3.3358,134.91,134.85,3.3371]
[1726152518277,3.3358,134.91,134.86,3.3369]
[1726152518478,3.3358,134.91,134.82,10.08539398]
[1726152518687,28.45,134.93,134.82,10.08539398]
[1726152518879,28.45,134.93,134.85,3.337]
[1726152519186,28.45,134.95,134.86,3.62867946]
[1726152519396,28.45,134.95,134.82,10.08539398]
[1726152520177,3.3358,134.91,134.82,10.08539398]
[1726152520385,3.3358,134.91,134.85,3.337]
[1726152521491,3.3358,134.91,134.86,3.3369]
[1726152522198,3.3358,134.91,134.85,3.3371]
[1726152522384,3.3358,134.91,134.82,10.08851624]
[1726152522785,3.3358,134.91,134.85,3.3369]
[1726152523396,28.45,134.95,134.85,28.45]
[1726152523690,28.45,134.95,134.86,3.63201601]
[1726152524091,28.45,134.95,134.83,28.45]
[1726152524579,3.3355,134.92,134.83,28.45]
[1726152524777,28.45,134.95,134.83,28.45]
[1726152524989,1.392,134.94,134.82,4.1594]
[1726152525186,3.3358,134.91,134.86,3.3368]
[1726152525386,1.392,134.94,134.87,3.67020093]
[1726152525595,1.392,134.94,134.86,28.45]
[1726152525800,1.3184,134.97,134.88,28.45]
[1726152526193,1.3953,134.98,134.89,2.7683]
[1726152526387,1.3953,134.98,134.89,4.0683]
[1726152526699,4.7293,134.98,134.92,3.3354]
[1726152526888,1.3953,134.98,134.9,28.45]
[1726152527088,3.3336,135.0,134.9,28.45]
[1726152527896,3.3337,134.99,134.93,3.3352]
[1726152528688,3.3337,134.99,134.94,3.6202849]
[1726152529589,28.45,135.01,134.94,3.6202849]
[1726152530098,3.3338,134.99,134.94,6.9551849]
[1726152531298,28.45,135.01,134.9,28.45]
[1726152531608,28.45,135.01,134.89,4.0683]
[1726152531794,28.45,135.01,134.91,3.3355]
[1726152532195,28.45,134.99,134.89,1.3559]
[1726152532401,28.45,134.99,134.88,28.45]
[1726152532594,28.45,134.97,134.86,32.10277674]
[1726152532894,4.0474,134.96,134.86,28.45]
[1726152533198,28.45,135.01,134.9,28.45]
[1726152534617,3.3343,134.97,134.91,3.3354]
[1726152534803,3.3343,134.97,134.9,28.45]
[1726152535110,28.45,135.01,134.9,28.45]
[1726152535688,3.3344,134.97,134.91,3.3355]
[1726152535909,3.76260931,134.98,134.88,28.45]
[1726152536096,28.45,135.01,134.88,28.45]
[1726152536294,28.45,135.01,134.9,3.3358]
[1726152536502,28.45,135.01,134.88,28.45]
[1726152536789,3.3348,134.95,134.9,3.3358]
[1726152537199,3.3345,134.96,134.9,3.3358]
[1726152537499,3.3345,134.96,134.91,3.3355]
[1726152537890,28.45,135.01,134.89,2.7902]
[1726152538087,17.8,135.0,134.91,3.3355]
[1726152538292,3.3344,134.97,134.91,3.3355]
[1726152538500,17.8,135.0,134.9,21.1358]
[1726152538903,3.3345,134.96,134.9,17.8]
[1726152539094,3.3345,134.96,134.91,3.3357]
[1726152539291,3.3345,134.96,134.9,17.8]
[1726152539489,3.76186443,134.98,134.9,17.8]
[1726152539793,17.8,134.98,134.89,2.7902]
[1726152540092,17.8,134.96,134.86,24.92239501]
[1726152540294,1.3294,134.95,134.86,17.8]
[1726152540697,1.3294,134.95,134.86,21.56334694]
[1726152541100,3.335,134.94,134.88,17.8]
[1726152541404,2.7303,134.97,134.88,17.8]
[1726152541596,3.3349,134.94,134.88,17.8]
[1726152541805,1.3473,134.97,134.9,17.8]
[1726152541989,19.1294,135.0,134.9,17.8]
[1726152542195,3.334,134.98,134.9,17.8]
[1726152542398,19.1294,135.0,134.92,3.3353]
[1726152542602,19.1294,135.0,134.9,19.096]
[1726152542901,19.1294,135.0,134.93,3.335]
[1726152543204,3.3334,135.01,134.94,17.8]
[1726152543403,3.3334,135.01,134.95,7.01001012]
[1726152543664,17.8,135.03,134.92,17.8]
[1726152543803,3.334,134.98,134.92,17.8]
[1726152544102,28.47,135.02,134.91,29.854]
[1726152545501,3.3336,135.0,134.94,3.3348]
[1726152545902,3.3336,135.0,134.91,29.854]
[1726152546114,3.3334,135.01,134.93,28.47]
[1726152546598,3.3334,135.01,134.95,3.3345]
[1726152546925,32.5477,135.04,134.93,28.47]
[1726152547105,32.5477,135.04,134.93,31.805]
[1726152547311,32.5477,135.04,134.93,28.47]
[1726152547606,32.5477,135.04,134.94,3.3349]
[1726152547809,32.5477,135.04,134.93,28.47]
[1726152548194,32.5477,135.04,134.95,3.3347]
[1726152548416,3.3334,135.01,134.95,7.05015016]
[1726152549004,32.5477,135.04,134.93,28.47]
[1726152550909,3.3336,135.0,134.93,28.47]
[1726152551102,32.5477,135.04,134.93,28.47]
[1726152551297,3.3336,135.0,134.94,3.3348]
[1726152552009,32.5477,135.04,134.95,3.3345]
[1726152552208,32.5477,135.04,134.95,7.07412655]
[1726152552413,32.5477,135.04,134.93,28.47]
[1726152552712,3.3333,135.01,134.96,3.3343]
[1726152552914,3.3333,135.01,134.96,7.02845425]
[1726152553113,3.3333,135.01,134.96,3.3343]
[1726152553313,3.3333,135.01,134.95,3.3346]
[1726152553617,3.3333,135.01,134.96,3.66155441]
[1726152553797,3.3333,135.01,134.96,3.3344]
[1726152554001,3.3333,135.01,134.96,7.03670421]
[1726152554204,32.5477,135.04,134.93,28.47]
[1726152554905,3.3336,135.0,134.94,3.3347]
[1726152555210,3.3336,135.0,134.95,3.77120841]
[1726152555432,3.3336,135.0,134.95,3.3346]
[1726152555620,3.3333,135.01,134.95,3.62255483]
[1726152555918,4.0777,135.04,134.95,28.47]
[1726152556115,3.3331,135.02,134.97,3.3342]
[1726152556303,4.0777,135.04,134.96,3.62663011]
[1726152557426,4.0777,135.04,134.96,6.96093011]
[1726152557906,3.3332,135.01,134.96,6.96093011]
[1726152559620,3.3331,135.02,134.97,3.3342]
[1726152560313,3.3332,135.01,134.96,6.96093011]
[1726152561220,3.333,135.02,134.97,3.3341]
[1726152561815,3.3332,135.01,134.96,6.96093011]
[1726152562811,3.3331,135.02,134.96,6.96093011]
[1726152563022,22.17,135.15,134.98,28.47]
[1726152563216,1.3582,135.1,135.05,28.47]
[1726152563460,4.699,135.11,135.05,31.8021]
[1726152563923,4.699,135.11,135.0,3.3334]
[1726152563924,1.3681,135.11,135.0,3.3334]
[1726152564134,28.47,135.07,134.99,3.71054971]
[1726152564419,28.47,135.07,134.98,3.741295]
[1726152564625,28.47,135.07,134.97,2.7033]
[1726152564824,3.3324,135.05,134.99,3.3336]
[1726152565022,28.47,135.05,134.94,7.2186494]
[1726152565328,3.3332,135.02,134.96,3.3343]
[1726152565513,4.0078,135.04,134.97,3.70897277]
[1726152565814,3.3328,135.03,134.97,3.3341]
[1726152566123,4.0078,135.04,134.97,3.3341]
[1726152566333,3.3334,135.01,134.95,31.8046]
[1726152566817,3.3335,135.0,134.94,4.6449]
[1726152567025,3.3335,135.0,134.94,1.3101]
[1726152567239,4.0078,135.04,134.94,1.3101]
[1726152567412,3.3333,135.01,134.95,3.3345]
[1726152567812,4.0078,135.04,134.94,1.3101]
[1726152568122,3.3336,135.0,134.94,4.6448]
[1726152568321,3.3336,135.0,134.94,1.3101]
[1726152569321,3.3333,135.01,134.95,3.3345]
[1726152571837,3.333,135.02,134.94,1.3101]
[1726152572321,3.333,135.02,134.96,3.3342]
[1726152572514,3.3333,135.01,134.96,3.3342]
[1726152573314,4.0078,135.04,134.93,29.7784]
[1726152573315,3.3335,135.0,134.95,3.3346]
[1726152573523,28.47,135.01,134.93,1.3084]
[1726152574126,28.47,135.01,134.94,3.3348]
[1726152574332,28.47,135.01,134.93,1.3084]
[1726152574721,3.3339,134.99,134.94,3.3348]
[1726152574922,28.47,135.01,134.94,3.3348]
[1726152575226,28.47,135.03,134.93,1.3084]
[1726152576618,3.3338,134.99,134.93,1.3084]
[1726152576832,28.47,135.01,134.92,5.91768643]
[1726152577025,28.47,135.01,134.91,1.3795]
[1726152577432,3.3346,134.96,134.91,1.3795]
[1726152577625,28.47,134.99,134.89,2.8136]
[1726152577826,1.3122,134.98,134.89,2.8136]
[1726152578034,28.47,134.97,134.89,6.1496]
[1726152578638,3.3348,134.95,134.89,6.1496]
[1726152579029,28.47,134.97,134.88,13.05245488]
[1726152579227,28.47,134.97,134.88,9.71615488]
[1726152579531,28.47,134.97,134.89,3.3362]
[1726152579719,28.47,134.97,134.88,9.71615488]
[1726152579918,28.47,134.97,134.88,3.79188522]
[1726152580125,28.47,134.95,134.86,5.92426966]